[Event "Early-Titled-Tuesday-Blitz-February-27-2024"]
[Site "Chess.com"]
[Date "2024.02.27"]
[Round "1"]
[White "WindWhistler11"]
[Black "Lukianoo"]
[Result "0-1"]
[WhiteElo "2476"]
[BlackElo "2845"]
[TimeControl "180+1"]
[EndTime "8:07:08 PST"]
[Termination "Lukianoo won by resignation"]

1. Nf3 {[%clk 0:02:53.8]} 1... Nf6 {[%clk 0:03:00]} 2. g3 {[%clk 0:02:53.6]}
2... b5 {[%clk 0:02:59.6]} 3. Bg2 {[%clk 0:02:52.7]} 3... Bb7 {[%clk 0:02:59.9]}
4. Nc3 {[%clk 0:02:50.8]} 4... b4 {[%clk 0:02:59.3]} 5. Na4 {[%clk 0:02:51.5]}
5... e6 {[%clk 0:02:56.8]} 6. d4 {[%clk 0:02:47.9]} 6... d5 {[%clk 0:02:53.6]}
7. Ne5 {[%clk 0:02:37.2]} 7... Nbd7 {[%clk 0:02:51.5]} 8. Nd3 {[%clk 0:02:35.4]}
8... Bd6 {[%clk 0:02:31.2]} 9. O-O {[%clk 0:02:34.6]} 9... O-O {[%clk
0:02:30.5]} 10. Bd2 {[%clk 0:02:34.3]} 10... Qe7 {[%clk 0:02:29.1]} 11. a3
{[%clk 0:02:07]} 11... bxa3 {[%clk 0:02:26.8]} 12. bxa3 {[%clk 0:02:05.8]} 12...
Ba6 {[%clk 0:02:20.5]} 13. Ndc5 {[%clk 0:01:50.8]} 13... Nxc5 {[%clk 0:02:17.7]}
14. dxc5 {[%clk 0:01:49.7]} 14... Be5 {[%clk 0:02:17.8]} 15. Rb1 {[%clk
0:01:47.7]} 15... c6 {[%clk 0:02:15.5]} 16. Nb2 {[%clk 0:01:38.1]} 16... Rfb8
{[%clk 0:02:06.5]} 17. Bb4 {[%clk 0:01:33.5]} 17... Bxb2 {[%clk 0:01:57.4]} 18.
Rxb2 {[%clk 0:01:32.9]} 18... Bc4 {[%clk 0:01:57.3]} 19. Qd2 {[%clk 0:01:16.2]}
19... a5 {[%clk 0:01:23.4]} 20. Bc3 {[%clk 0:01:16.4]} 20... Rxb2 {[%clk
0:01:23.7]} 21. Bxb2 {[%clk 0:01:17.1]} 21... Nd7 {[%clk 0:01:24.3]} 22. Bd4
{[%clk 0:00:34.7]} 22... e5 {[%clk 0:01:04.3]} 23. Ba1 {[%clk 0:00:34.7]} 23...
Nxc5 {[%clk 0:01:01.7]} 24. Qe3 {[%clk 0:00:34.4]} 24... Nd7 {[%clk 0:00:59.7]}
25. Bh3 {[%clk 0:00:34.8]} 25... f6 {[%clk 0:00:59.2]} 26. Rb1 {[%clk
0:00:33.4]} 26... Nf8 {[%clk 0:00:49.1]} 27. f4 {[%clk 0:00:26.6]} 27... Re8
{[%clk 0:00:44.6]} 28. fxe5 {[%clk 0:00:25.3]} 28... fxe5 {[%clk 0:00:45.5]} 29.
Rb6 {[%clk 0:00:24.2]} 29... d4 {[%clk 0:00:44.6]} 30. Qe4 {[%clk 0:00:14.5]}
30... Bd5 {[%clk 0:00:39.5]} 31. Qd3 {[%clk 0:00:10.6]} 31... Ne6 {[%clk
0:00:34.5]} 32. c4 {[%clk 0:00:09.1]} 32... dxc3 {[%clk 0:00:31]} 33. Bxc3
{[%clk 0:00:08.9]} 33... Qc5+ {[%clk 0:00:30.3]} 34. e3 {[%clk 0:00:03.6]} 34...
Qxb6 {[%clk 0:00:30.3]} 35. Bxe5 {[%clk 0:00:02.1]} 35... Ng5 {[%clk 0:00:29.4]}
36. Qf5 {[%clk 0:00:01.2]} 36... Nxh3+ {[%clk 0:00:28.8]} 0-1

[Event "Early-Titled-Tuesday-Blitz-February-27-2024"]
[Site "Chess.com"]
[Date "2024.02.27"]
[Round "1"]
[White "Sammed_Shete"]
[Black "ural58"]
[Result "1-0"]
[WhiteElo "2792"]
[BlackElo "2450"]
[TimeControl "180+1"]
[EndTime "8:07:09 PST"]
[Termination "Sammed_Shete won by resignation"]

1. e4 {[%clk 0:03:00.9]} 1... d5 {[%clk 0:02:52.9]} 2. exd5 {[%clk 0:02:58.5]}
2... Qxd5 {[%clk 0:02:52.6]} 3. Nc3 {[%clk 0:02:56.5]} 3... Qa5 {[%clk
0:02:52.3]} 4. Bc4 {[%clk 0:02:54.3]} 4... Nf6 {[%clk 0:02:49.7]} 5. d4 {[%clk
0:02:51.9]} 5... Bg4 {[%clk 0:02:48.6]} 6. f3 {[%clk 0:02:50.2]} 6... Be6 {[%clk
0:02:48.4]} 7. Bxe6 {[%clk 0:02:47]} 7... fxe6 {[%clk 0:02:48.6]} 8. Bd2 {[%clk
0:02:34.3]} 8... Nc6 {[%clk 0:02:44.8]} 9. Nge2 {[%clk 0:02:30.7]} 9... O-O-O
{[%clk 0:02:44]} 10. Ne4 {[%clk 0:02:22.1]} 10... Qb6 {[%clk 0:02:28.6]} 11. c3
{[%clk 0:02:20.9]} 11... e5 {[%clk 0:02:23.3]} 12. d5 {[%clk 0:02:01.2]} 12...
Rxd5 {[%clk 0:02:18.7]} 13. Qc2 {[%clk 0:01:58.7]} 13... Nxe4 {[%clk 0:02:14.2]}
14. fxe4 {[%clk 0:01:56.3]} 14... Rd6 {[%clk 0:02:13.4]} 15. Rf1 {[%clk
0:01:52]} 15... Rf6 {[%clk 0:02:11.4]} 16. O-O-O {[%clk 0:01:50.8]} 16... e6
{[%clk 0:02:11.4]} 17. Ng3 {[%clk 0:01:40.3]} 17... Bc5 {[%clk 0:02:07.8]} 18.
Nh5 {[%clk 0:01:39.6]} 18... Rg6 {[%clk 0:02:06.3]} 19. Be1 {[%clk 0:01:32]}
19... Be3+ {[%clk 0:02:03.9]} 20. Kb1 {[%clk 0:01:31.9]} 20... Na5 {[%clk
0:01:53.6]} 21. Rf7 {[%clk 0:01:21.8]} 21... Nc4 {[%clk 0:01:50.5]} 22. Qe2
{[%clk 0:01:21.6]} 22... Nxb2 {[%clk 0:00:59.7]} 23. Qxb2 {[%clk 0:01:15.3]}
23... Qxb2+ {[%clk 0:01:00.6]} 24. Kxb2 {[%clk 0:01:15.8]} 24... Rxg2+ {[%clk
0:01:01.3]} 25. Kb3 {[%clk 0:01:15]} 25... g6 {[%clk 0:01:01.7]} 26. Nf6 {[%clk
0:01:03.6]} 26... Rxh2 {[%clk 0:01:00.8]} 27. Ng4 {[%clk 0:00:44.3]} 27... Re2
{[%clk 0:00:54.5]} 28. Nxe3 {[%clk 0:00:32.8]} 28... Rxe3 {[%clk 0:00:54.7]} 29.
Bh4 {[%clk 0:00:33.7]} 29... Rxe4 {[%clk 0:00:49.6]} 30. Bg5 {[%clk 0:00:33.8]}
30... a5 {[%clk 0:00:46.6]} 31. a4 {[%clk 0:00:32.2]} 31... Kb8 {[%clk
0:00:35.2]} 32. Rdd7 {[%clk 0:00:30.9]} 32... Rc8 {[%clk 0:00:35.2]} 33. Rxh7
{[%clk 0:00:29.3]} 33... Rg4 {[%clk 0:00:33.2]} 34. Bd8 {[%clk 0:00:29.6]} 34...
b5 {[%clk 0:00:24.8]} 35. Bxc7+ {[%clk 0:00:28.3]} 35... Ka8 {[%clk 0:00:24.6]}
36. axb5 {[%clk 0:00:26.6]} 36... a4+ {[%clk 0:00:24.7]} 37. Ka3 {[%clk
0:00:26.6]} 37... Rc4 {[%clk 0:00:20.9]} 38. Bxe5 {[%clk 0:00:26.4]} 1-0

[Event "Early-Titled-Tuesday-Blitz-February-27-2024"]
[Site "Chess.com"]
[Date "2024.02.27"]
[Round "1"]
[White "KononenkoD"]
[Black "MarijaKuznecova"]
[Result "0-1"]
[WhiteElo "2619"]
[BlackElo "2331"]
[TimeControl "180+1"]
[EndTime "8:07:10 PST"]
[Termination "MarijaKuznecova won by checkmate"]

1. e4 {[%clk 0:03:00.9]} 1... c5 {[%clk 0:03:00]} 2. Nf3 {[%clk 0:03:00.4]} 2...
d6 {[%clk 0:03:00.5]} 3. d4 {[%clk 0:03:01.3]} 3... cxd4 {[%clk 0:03:01.3]} 4.
Nxd4 {[%clk 0:03:02]} 4... Nf6 {[%clk 0:03:01.9]} 5. Nc3 {[%clk 0:03:01.9]} 5...
a6 {[%clk 0:03:02.6]} 6. Bc4 {[%clk 0:03:01.4]} 6... e6 {[%clk 0:03:01.4]} 7.
Bb3 {[%clk 0:03:01.5]} 7... Be7 {[%clk 0:03:01.7]} 8. g4 {[%clk 0:03:00.3]} 8...
h6 {[%clk 0:02:51.4]} 9. h4 {[%clk 0:02:59]} 9... Nc6 {[%clk 0:02:50.3]} 10. Rg1
{[%clk 0:02:54.7]} 10... Nh7 {[%clk 0:02:43.8]} 11. h5 {[%clk 0:02:26.1]} 11...
Bg5 {[%clk 0:02:14.5]} 12. Nf3 {[%clk 0:02:19.1]} 12... Bxc1 {[%clk 0:02:11.3]}
13. Qxc1 {[%clk 0:02:20]} 13... b5 {[%clk 0:02:09.4]} 14. Qd2 {[%clk 0:02:09.1]}
14... b4 {[%clk 0:02:00.6]} 15. Ne2 {[%clk 0:02:05.7]} 15... Nf6 {[%clk
0:01:59.1]} 16. Qe3 {[%clk 0:01:55.8]} 16... a5 {[%clk 0:01:52.2]} 17. O-O-O
{[%clk 0:01:53.6]} 17... a4 {[%clk 0:01:49.5]} 18. Bc4 {[%clk 0:01:53.4]} 18...
Qc7 {[%clk 0:01:38.7]} 19. Kb1 {[%clk 0:01:46.3]} 19... Na5 {[%clk 0:01:34.5]}
20. Bb5+ {[%clk 0:01:42.9]} 20... Bd7 {[%clk 0:01:35]} 21. Bxd7+ {[%clk
0:01:42.9]} 21... Nxd7 {[%clk 0:01:33.9]} 22. g5 {[%clk 0:01:40.5]} 22... Nc4
{[%clk 0:01:16.9]} 23. Qd4 {[%clk 0:01:39.3]} 23... Nde5 {[%clk 0:01:14.6]} 24.
Nxe5 {[%clk 0:01:22.7]} 24... dxe5 {[%clk 0:01:15.5]} 25. Qd3 {[%clk 0:01:22.7]}
25... Ke7 {[%clk 0:00:50.3]} 26. gxh6 {[%clk 0:01:21.7]} 26... gxh6 {[%clk
0:00:44.3]} 27. Qh3 {[%clk 0:01:12.3]} 27... a3 {[%clk 0:00:34.9]} 28. Qh4+
{[%clk 0:01:02]} 28... Ke8 {[%clk 0:00:35]} 29. Qf6 {[%clk 0:00:49.5]} 29... Rf8
{[%clk 0:00:35.2]} 30. b3 {[%clk 0:00:46.3]} 30... Nb6 {[%clk 0:00:21.7]} 31.
Rd2 {[%clk 0:00:40.4]} 31... Rc8 {[%clk 0:00:17.4]} 32. Rgd1 {[%clk 0:00:37.7]}
32... Rg8 {[%clk 0:00:17]} 33. Qxh6 {[%clk 0:00:25.7]} 33... Qc6 {[%clk
0:00:16.5]} 34. Qf6 {[%clk 0:00:23.5]} 34... Nd7 {[%clk 0:00:06.3]} 35. Rxd7
{[%clk 0:00:22.4]} 35... Qxc2+ {[%clk 0:00:05.9]} 36. Ka1 {[%clk 0:00:22.1]}
36... Qb2# {[%clk 0:00:06.8]} 0-1

[Event "Early-Titled-Tuesday-Blitz-February-27-2024"]
[Site "Chess.com"]
[Date "2024.02.27"]
[Round "1"]
[White "BardArtem"]
[Black "Der_Balak_3Halak"]
[Result "1-0"]
[WhiteElo "2765"]
[BlackElo "2437"]
[TimeControl "180+1"]
[EndTime "8:07:11 PST"]
[Termination "BardArtem won by checkmate"]

1. e4 {[%clk 0:03:00]} 1... e6 {[%clk 0:02:58.5]} 2. d4 {[%clk 0:02:57.4]} 2...
d5 {[%clk 0:02:59.4]} 3. Nc3 {[%clk 0:02:56.7]} 3... dxe4 {[%clk 0:02:58.3]} 4.
Nxe4 {[%clk 0:02:57.6]} 4... Nd7 {[%clk 0:02:58.6]} 5. g3 {[%clk 0:02:55.4]}
5... Ngf6 {[%clk 0:02:58.9]} 6. Nxf6+ {[%clk 0:02:55.8]} 6... Nxf6 {[%clk
0:02:59.4]} 7. Bg2 {[%clk 0:02:56.7]} 7... c5 {[%clk 0:02:55.3]} 8. Nf3 {[%clk
0:02:45.9]} 8... Be7 {[%clk 0:02:52]} 9. O-O {[%clk 0:02:41.5]} 9... cxd4 {[%clk
0:02:52]} 10. Qxd4 {[%clk 0:02:40.7]} 10... O-O {[%clk 0:02:51.2]} 11. Rd1
{[%clk 0:02:34.7]} 11... Qa5 {[%clk 0:01:54]} 12. Bd2 {[%clk 0:02:26.5]} 12...
Qf5 {[%clk 0:01:50.2]} 13. Rac1 {[%clk 0:02:19.6]} 13... Bc5 {[%clk 0:01:48.2]}
14. Qh4 {[%clk 0:02:18.1]} 14... Ne4 {[%clk 0:01:35.5]} 15. Be1 {[%clk
0:02:10.8]} 15... g5 {[%clk 0:01:17.8]} 16. Qh5 {[%clk 0:02:06.8]} 16... g4
{[%clk 0:01:16.5]} 17. Qxf5 {[%clk 0:02:07.7]} 17... exf5 {[%clk 0:01:17.2]} 18.
Nd2 {[%clk 0:02:05.8]} 18... Re8 {[%clk 0:01:07.3]} 19. Nxe4 {[%clk 0:01:20.4]}
19... fxe4 {[%clk 0:01:08.2]} 20. Rd5 {[%clk 0:01:21.1]} 20... Bb6 {[%clk
0:01:03.5]} 21. Rg5+ {[%clk 0:01:18.6]} 21... Kf8 {[%clk 0:00:50.9]} 22. Bb4+
{[%clk 0:01:15.9]} 22... Re7 {[%clk 0:00:51.2]} 23. Bxe4 {[%clk 0:01:11.7]}
23... h6 {[%clk 0:00:40.1]} 24. Re5 {[%clk 0:01:02.4]} 24... Be6 {[%clk
0:00:37.6]} 25. Bxb7 {[%clk 0:00:48.6]} 25... Rd8 {[%clk 0:00:31.9]} 26. Bxe7+
{[%clk 0:00:43.3]} 26... Kxe7 {[%clk 0:00:30.7]} 27. c4 {[%clk 0:00:44.2]} 27...
Rd2 {[%clk 0:00:29.4]} 28. Rf1 {[%clk 0:00:43.9]} 28... Kf6 {[%clk 0:00:18.5]}
29. Re4 {[%clk 0:00:40.7]} 29... Kf5 {[%clk 0:00:16.1]} 30. Rf4+ {[%clk
0:00:39]} 30... Kg5 {[%clk 0:00:16.3]} 31. Bd5 {[%clk 0:00:37.4]} 31... Bxd5
{[%clk 0:00:14.9]} 32. cxd5 {[%clk 0:00:38.3]} 32... Rxd5 {[%clk 0:00:15.5]} 33.
Rxf7 {[%clk 0:00:38.1]} 33... Rd2 {[%clk 0:00:15.8]} 34. Kg2 {[%clk 0:00:36.1]}
34... h5 {[%clk 0:00:13]} 35. Re1 {[%clk 0:00:31.7]} 35... h4 {[%clk 0:00:13.4]}
36. gxh4+ {[%clk 0:00:31.1]} 36... Kxh4 {[%clk 0:00:14.3]} 37. Re5 {[%clk
0:00:31.2]} 37... g3 {[%clk 0:00:06.9]} 38. hxg3+ {[%clk 0:00:29.6]} 38... Kg4
{[%clk 0:00:07.4]} 39. Rf4# {[%clk 0:00:30.5]} 1-0

[Event "Early-Titled-Tuesday-Blitz-February-27-2024"]
[Site "Chess.com"]
[Date "2024.02.27"]
[Round "1"]
[White "Kezin_Roman"]
[Black "SARGISMV"]
[Result "1-0"]
[WhiteElo "2782"]
[BlackElo "2446"]
[TimeControl "180+1"]
[EndTime "8:07:13 PST"]
[Termination "Kezin_Roman won on time"]

1. b3 {[%clk 0:03:00]} 1... Nf6 {[%clk 0:02:59.1]} 2. Bb2 {[%clk 0:03:00.4]}
2... d5 {[%clk 0:02:57.3]} 3. e3 {[%clk 0:02:59]} 3... c5 {[%clk 0:02:57.1]} 4.
Nf3 {[%clk 0:02:57.2]} 4... a6 {[%clk 0:02:56.2]} 5. d4 {[%clk 0:02:55.1]} 5...
Nc6 {[%clk 0:02:55]} 6. Nbd2 {[%clk 0:02:52.1]} 6... Bf5 {[%clk 0:02:53.3]} 7.
Rc1 {[%clk 0:02:37.1]} 7... e6 {[%clk 0:02:50.8]} 8. c4 {[%clk 0:02:37.2]} 8...
cxd4 {[%clk 0:02:42.6]} 9. exd4 {[%clk 0:02:34.7]} 9... Be7 {[%clk 0:02:18.7]}
10. Be2 {[%clk 0:02:34.6]} 10... O-O {[%clk 0:02:18.4]} 11. O-O {[%clk
0:02:34.7]} 11... Rc8 {[%clk 0:02:17.9]} 12. Ne5 {[%clk 0:02:28]} 12... dxc4
{[%clk 0:02:07.4]} 13. Ndxc4 {[%clk 0:02:27.5]} 13... Nd5 {[%clk 0:01:58.5]} 14.
Bf3 {[%clk 0:02:27.4]} 14... b5 {[%clk 0:01:29.4]} 15. Ne3 {[%clk 0:02:23.9]}
15... Nxe5 {[%clk 0:01:28]} 16. Bxd5 {[%clk 0:02:11.6]} 16... Rxc1 {[%clk
0:01:24.2]} 17. Bxc1 {[%clk 0:02:12.5]} 17... exd5 {[%clk 0:00:33.6]} 18. Nxf5
{[%clk 0:02:10.6]} 18... Nc6 {[%clk 0:00:33.1]} 19. Bf4 {[%clk 0:02:02.1]} 19...
Bf6 {[%clk 0:00:32.4]} 20. Qd2 {[%clk 0:01:51.1]} 20... g6 {[%clk 0:00:31.4]}
21. Rc1 {[%clk 0:01:51.6]} 21... Qd7 {[%clk 0:00:26.1]} 22. Nh6+ {[%clk
0:01:49.4]} 22... Kg7 {[%clk 0:00:25.7]} 23. Ng4 {[%clk 0:01:44.8]} 23... Qxg4
{[%clk 0:00:21.8]} 24. Bh6+ {[%clk 0:01:42.3]} 24... Kg8 {[%clk 0:00:20.7]} 25.
Rxc6 {[%clk 0:01:31.3]} 25... Bg7 {[%clk 0:00:18.9]} 26. Bxg7 {[%clk 0:01:28.4]}
26... Kxg7 {[%clk 0:00:19.8]} 27. h3 {[%clk 0:01:20.8]} 27... Qe4 {[%clk
0:00:18]} 28. Rxa6 {[%clk 0:01:20.6]} 28... Rc8 {[%clk 0:00:17.5]} 29. Qe3
{[%clk 0:01:16.9]} 29... Qb1+ {[%clk 0:00:12.8]} 30. Kh2 {[%clk 0:01:16.7]}
30... Rc1 {[%clk 0:00:13.7]} 31. Qf3 {[%clk 0:01:12.3]} 31... Rh1+ {[%clk
0:00:10.3]} 32. Kg3 {[%clk 0:01:12.3]} 32... Rd1 {[%clk 0:00:10.9]} 33. Qf6+
{[%clk 0:01:07.7]} 33... Kh6 {[%clk 0:00:11.2]} 34. Qf4+ {[%clk 0:01:04.8]}
34... Kg7 {[%clk 0:00:10.8]} 35. Rf6 {[%clk 0:01:00.4]} 35... Qd3+ {[%clk
0:00:09.6]} 36. Kh2 {[%clk 0:01:00.3]} 36... Qxd4 {[%clk 0:00:05.8]} 37. Rxf7+
{[%clk 0:01:00]} 37... Kg8 {[%clk 0:00:06.4]} 38. Rf8+ {[%clk 0:00:58.3]} 38...
Kg7 {[%clk 0:00:06.9]} 39. Rf7+ {[%clk 0:00:39.9]} 39... Kg8 {[%clk 0:00:06.9]}
40. Qc7 {[%clk 0:00:39.8]} 1-0

[Event "Early-Titled-Tuesday-Blitz-February-27-2024"]
[Site "Chess.com"]
[Date "2024.02.27"]
[Round "1"]
[White "MergenKakabaev"]
[Black "BallottiLuca"]
[Result "1-0"]
[WhiteElo "2745"]
[BlackElo "2422"]
[TimeControl "180+1"]
[EndTime "8:07:13 PST"]
[Termination "MergenKakabaev won on time"]

1. e4 {[%clk 0:03:00.2]} 1... c5 {[%clk 0:02:59.8]} 2. Nf3 {[%clk 0:03:00.2]}
2... e6 {[%clk 0:02:59.7]} 3. d4 {[%clk 0:03:00.4]} 3... cxd4 {[%clk 0:02:59.9]}
4. Nxd4 {[%clk 0:03:01.3]} 4... a6 {[%clk 0:02:59]} 5. Bd3 {[%clk 0:03:00.9]}
5... Bc5 {[%clk 0:02:57.7]} 6. Nb3 {[%clk 0:03:00.8]} 6... Be7 {[%clk
0:02:56.2]} 7. O-O {[%clk 0:03:00.5]} 7... d6 {[%clk 0:02:54.4]} 8. Be3 {[%clk
0:02:58.4]} 8... Nf6 {[%clk 0:02:51.2]} 9. c4 {[%clk 0:02:56.4]} 9... Nbd7
{[%clk 0:02:47.8]} 10. Nc3 {[%clk 0:02:56.8]} 10... Qc7 {[%clk 0:02:43.5]} 11.
Rc1 {[%clk 0:02:19.2]} 11... b6 {[%clk 0:02:43.1]} 12. f3 {[%clk 0:02:18]} 12...
Bb7 {[%clk 0:02:40.9]} 13. Qd2 {[%clk 0:02:18.1]} 13... O-O {[%clk 0:02:39.4]}
14. Rfd1 {[%clk 0:02:17.9]} 14... Rac8 {[%clk 0:02:36.4]} 15. Bf1 {[%clk
0:02:17]} 15... Qb8 {[%clk 0:02:35.4]} 16. Qf2 {[%clk 0:02:15.9]} 16... Bd8
{[%clk 0:02:33.8]} 17. Nd4 {[%clk 0:02:12.3]} 17... Bc7 {[%clk 0:02:31.3]} 18.
g3 {[%clk 0:02:11.7]} 18... Rfe8 {[%clk 0:02:30.2]} 19. Nde2 {[%clk 0:01:58.1]}
19... Qa8 {[%clk 0:02:18.5]} 20. Nf4 {[%clk 0:01:57.6]} 20... Ne5 {[%clk
0:02:11.9]} 21. b3 {[%clk 0:01:53.8]} 21... Kh8 {[%clk 0:01:52.6]} 22. Bg2
{[%clk 0:01:53.1]} 22... Nfd7 {[%clk 0:01:48.4]} 23. h4 {[%clk 0:01:50]} 23...
Bc6 {[%clk 0:01:27.9]} 24. a4 {[%clk 0:01:47.6]} 24... Nc5 {[%clk 0:01:26]} 25.
Qc2 {[%clk 0:01:41.6]} 25... b5 {[%clk 0:01:03.4]} 26. axb5 {[%clk 0:01:39.4]}
26... axb5 {[%clk 0:01:04.3]} 27. cxb5 {[%clk 0:01:39]} 27... Bb7 {[%clk
0:01:03.8]} 28. b4 {[%clk 0:01:37.5]} 28... Ncd7 {[%clk 0:01:00.3]} 29. Qa4
{[%clk 0:01:30.2]} 29... Nc4 {[%clk 0:00:53.2]} 30. Bf2 {[%clk 0:01:28.9]} 30...
Ndb6 {[%clk 0:00:41.2]} 31. Qxa8 {[%clk 0:01:27.4]} 31... Rxa8 {[%clk
0:00:42.1]} 32. Ra1 {[%clk 0:01:27.4]} 32... Rxa1 {[%clk 0:00:40.2]} 33. Rxa1
{[%clk 0:01:26.9]} 33... Ra8 {[%clk 0:00:41.1]} 34. Rxa8+ {[%clk 0:01:23.7]}
34... Bxa8 {[%clk 0:00:42]} 35. Bf1 {[%clk 0:01:20.3]} 35... Kg8 {[%clk
0:00:41.5]} 36. Na4 {[%clk 0:01:14.7]} 36... Nxa4 {[%clk 0:00:40.4]} 37. Bxc4
{[%clk 0:01:14.5]} 37... Bb6 {[%clk 0:00:40.6]} 38. Bb3 {[%clk 0:01:12.1]} 38...
Bxf2+ {[%clk 0:00:39.9]} 39. Kxf2 {[%clk 0:01:13]} 39... Nb6 {[%clk 0:00:40.3]}
40. Ke3 {[%clk 0:01:13.5]} 40... Kf8 {[%clk 0:00:40.7]} 41. Nd3 {[%clk
0:01:10.2]} 41... Ke7 {[%clk 0:00:40.7]} 42. Nb2 {[%clk 0:01:10.7]} 42... d5
{[%clk 0:00:38.2]} 43. e5 {[%clk 0:01:10.3]} 43... f6 {[%clk 0:00:31.8]} 44. f4
{[%clk 0:01:10.3]} 44... fxe5 {[%clk 0:00:31.6]} 45. fxe5 {[%clk 0:01:11.2]}
45... Bb7 {[%clk 0:00:17.5]} 46. Kd4 {[%clk 0:01:10.8]} 46... Nd7 {[%clk
0:00:16.4]} 47. Nd3 {[%clk 0:01:08.6]} 47... Kd8 {[%clk 0:00:10.8]} 48. Nc5
{[%clk 0:01:08.4]} 48... Nxc5 {[%clk 0:00:05.1]} 49. bxc5 {[%clk 0:01:09.3]}
49... Kc7 {[%clk 0:00:05]} 50. c6 {[%clk 0:01:08.8]} 1-0

[Event "Early-Titled-Tuesday-Blitz-February-27-2024"]
[Site "Chess.com"]
[Date "2024.02.27"]
[Round "1"]
[White "KarolKacprzak"]
[Black "esrosenberg"]
[Result "1-0"]
[WhiteElo "2728"]
[BlackElo "2414"]
[TimeControl "180+1"]
[EndTime "8:07:15 PST"]
[Termination "KarolKacprzak won by resignation"]

1. d4 {[%clk 0:03:00.9]} 1... d5 {[%clk 0:02:59.9]} 2. Nf3 {[%clk 0:03:00.1]}
2... Bf5 {[%clk 0:02:59.8]} 3. c4 {[%clk 0:02:58.2]} 3... e6 {[%clk 0:03:00]} 4.
Nc3 {[%clk 0:02:56.4]} 4... Nf6 {[%clk 0:03:00.2]} 5. cxd5 {[%clk 0:02:38.3]}
5... exd5 {[%clk 0:03:00.2]} 6. Qb3 {[%clk 0:02:36.4]} 6... Nc6 {[%clk
0:03:00.5]} 7. Bg5 {[%clk 0:02:34.4]} 7... Na5 {[%clk 0:02:48]} 8. Qa4+ {[%clk
0:02:31.4]} 8... c6 {[%clk 0:02:48.2]} 9. Bxf6 {[%clk 0:02:31.9]} 9... gxf6
{[%clk 0:02:48.3]} 10. e3 {[%clk 0:02:32]} 10... Qb6 {[%clk 0:01:59]} 11. O-O-O
{[%clk 0:02:13.5]} 11... O-O-O {[%clk 0:01:59.1]} 12. Bd3 {[%clk 0:01:56.9]}
12... Be6 {[%clk 0:01:56.8]} 13. Kb1 {[%clk 0:01:55.4]} 13... h5 {[%clk
0:01:52.9]} 14. Nh4 {[%clk 0:01:55.1]} 14... Rg8 {[%clk 0:01:49.1]} 15. g3
{[%clk 0:01:54.9]} 15... Nc4 {[%clk 0:01:41.4]} 16. Bxc4 {[%clk 0:01:34.2]}
16... dxc4 {[%clk 0:01:41.3]} 17. Qc2 {[%clk 0:01:34.6]} 17... Rg5 {[%clk
0:01:19.5]} 18. f4 {[%clk 0:01:28.7]} 18... Ra5 {[%clk 0:01:18.2]} 19. Rd2
{[%clk 0:01:00.5]} 19... Bb4 {[%clk 0:01:15.9]} 20. Rhd1 {[%clk 0:00:56]} 20...
Bg4 {[%clk 0:01:14.6]} 21. Re1 {[%clk 0:00:55.5]} 21... Re8 {[%clk 0:01:08.3]}
22. e4 {[%clk 0:00:53.7]} 22... f5 {[%clk 0:00:59.4]} 23. e5 {[%clk 0:00:43.5]}
23... Kb8 {[%clk 0:00:59.7]} 24. Rc1 {[%clk 0:00:39]} 24... Rd8 {[%clk
0:00:58.5]} 25. Ka1 {[%clk 0:00:29.3]} 25... Rxd4 {[%clk 0:00:56.9]} 26. Rxd4
{[%clk 0:00:27.2]} 26... Qxd4 {[%clk 0:00:57.8]} 27. Nxf5 {[%clk 0:00:27.8]}
27... Bxf5 {[%clk 0:00:57]} 28. Qxf5 {[%clk 0:00:28.7]} 28... Bxc3 {[%clk
0:00:54.8]} 29. Rxc3 {[%clk 0:00:23.2]} 29... Qg1+ {[%clk 0:00:47.6]} 30. Qb1
{[%clk 0:00:23.6]} 30... Qxh2 {[%clk 0:00:46.2]} 31. a3 {[%clk 0:00:23.4]} 31...
h4 {[%clk 0:00:46.1]} 32. gxh4 {[%clk 0:00:24.3]} 32... Qxf4 {[%clk 0:00:45.2]}
33. h5 {[%clk 0:00:23.2]} 33... Rxe5 {[%clk 0:00:44.6]} 34. Rh3 {[%clk
0:00:22.2]} 34... Qh6 {[%clk 0:00:39.3]} 35. Qh1 {[%clk 0:00:19.4]} 35... c3
{[%clk 0:00:34.7]} 36. Rxc3 {[%clk 0:00:11.8]} 36... Rxh5 {[%clk 0:00:33.6]} 37.
Qg2 {[%clk 0:00:05.6]} 37... Rh1+ {[%clk 0:00:33.4]} 38. Ka2 {[%clk 0:00:06.2]}
38... Qe6+ {[%clk 0:00:31.8]} 39. Rb3 {[%clk 0:00:06.7]} 39... Rh3 {[%clk
0:00:30.4]} 40. Qxh3 {[%clk 0:00:06.4]} 1-0

[Event "Early-Titled-Tuesday-Blitz-February-27-2024"]
[Site "Chess.com"]
[Date "2024.02.27"]
[Round "1"]
[White "JaloliddinIlkhomi"]
[Black "semchik73"]
[Result "1-0"]
[WhiteElo "2753"]
[BlackElo "2427"]
[TimeControl "180+1"]
[EndTime "8:07:16 PST"]
[Termination "JaloliddinIlkhomi won by checkmate"]

1. Nf3 {[%clk 0:03:00.9]} 1... d5 {[%clk 0:02:59.8]} 2. d4 {[%clk 0:02:54.8]}
2... Nf6 {[%clk 0:02:59.2]} 3. Bf4 {[%clk 0:02:53.8]} 3... c5 {[%clk 0:02:58.8]}
4. e3 {[%clk 0:02:54.3]} 4... e6 {[%clk 0:02:58.7]} 5. c3 {[%clk 0:02:54.8]}
5... Bd6 {[%clk 0:02:58.8]} 6. Bg3 {[%clk 0:02:55.3]} 6... Nc6 {[%clk
0:02:54.9]} 7. Nbd2 {[%clk 0:02:54.6]} 7... O-O {[%clk 0:02:49.9]} 8. Bd3 {[%clk
0:02:52.4]} 8... b6 {[%clk 0:02:47.3]} 9. Ne5 {[%clk 0:02:52.6]} 9... Qc7 {[%clk
0:02:39.1]} 10. f4 {[%clk 0:02:50.3]} 10... g6 {[%clk 0:02:35.5]} 11. Bh4 {[%clk
0:02:44.2]} 11... Be7 {[%clk 0:02:28.9]} 12. O-O {[%clk 0:02:39.2]} 12... Bb7
{[%clk 0:02:24.2]} 13. Qf3 {[%clk 0:02:30.8]} 13... Ne4 {[%clk 0:02:10.7]} 14.
Nxe4 {[%clk 0:02:02.9]} 14... dxe4 {[%clk 0:02:05.6]} 15. Bxe4 {[%clk
0:02:02.6]} 15... Nxd4 {[%clk 0:01:50.7]} 16. exd4 {[%clk 0:01:50.9]} 16... Bxe4
{[%clk 0:01:50.5]} 17. Qxe4 {[%clk 0:01:50.3]} 17... Bxh4 {[%clk 0:01:50.7]} 18.
f5 {[%clk 0:01:45.7]} 18... Be7 {[%clk 0:01:25.2]} 19. f6 {[%clk 0:01:45.1]}
19... Bd6 {[%clk 0:01:22.5]} 20. Qf4 {[%clk 0:01:44.4]} 20... Rfd8 {[%clk
0:01:15.5]} 21. Rad1 {[%clk 0:01:01.9]} 21... cxd4 {[%clk 0:00:53.1]} 22. cxd4
{[%clk 0:01:02]} 22... h5 {[%clk 0:00:39.1]} 23. Qg5 {[%clk 0:00:40.1]} 23...
Bxe5 {[%clk 0:00:23.5]} 24. dxe5 {[%clk 0:00:29.3]} 24... Qc5+ {[%clk
0:00:23.3]} 25. Kh1 {[%clk 0:00:27.9]} 25... Rac8 {[%clk 0:00:19.9]} 26. h3
{[%clk 0:00:24.6]} 26... a5 {[%clk 0:00:18.1]} 27. a4 {[%clk 0:00:24.2]} 27...
Qb4 {[%clk 0:00:17.5]} 28. b3 {[%clk 0:00:24.3]} 28... Rxd1 {[%clk 0:00:15]} 29.
Rxd1 {[%clk 0:00:25.2]} 29... Qf8 {[%clk 0:00:09.1]} 30. Kh2 {[%clk 0:00:22.3]}
30... Qc5 {[%clk 0:00:07.9]} 31. Re1 {[%clk 0:00:17]} 31... Kh7 {[%clk
0:00:07.2]} 32. Re4 {[%clk 0:00:17]} 32... Qf2 {[%clk 0:00:04.9]} 33. Rh4 {[%clk
0:00:16.6]} 33... Rc2 {[%clk 0:00:02.1]} 34. Rxh5+ {[%clk 0:00:15.9]} 34... gxh5
{[%clk 0:00:02.2]} 35. Qg7# {[%clk 0:00:15.7]} 1-0